Cogmind - Beta 13 @@@ ROGUE MODE // 2024.04.10 @ 11:40:18 Player: Vox Result: Destroyed by D-53 Grenadier with Mini Grenade Launcher Performance ------------- Evolutions (0) 0 Regions Visited (3) 600 Robots Destroyed (41) 205 Value Destroyed (1229) 1229 Prototype IDs (0) 0 Alien Tech Used (0) 0 Bonus (0) 0 TOTAL SCORE: 2034 Bonus ------- None Cogmind --------- Core Integrity 0/250 Matter 60/300 Energy 250/250 System Corruption 1% Temperature Cool (0) Movement Core (150) Ox2 Location -8/Recycling Parts ------- > --- POWER (1) -------- Ion Engine > --- PROPULSION (2) --- (None) > --- UTILITY (2) ------ (None) > --- WEAPON (2) ------- Assault Rifle > --- INVENTORY (5) ---- Subdweller Power Source Light Treads Subdweller Machine Gun Peak State ------------ > --- POWER ------------ Ion Engine > --- PROPULSION ------- Light Treads Spiked Treads > --- UTILITY ---------- Scrap Shield > --- WEAPON ----------- Grenade Launcher Grenade Launcher > --- INVENTORY -------- Light Treads Wheel Assault Rifle Grenade Launcher [Rating: 10] Favorites ----------- Power Ion Engine Engine Ion Engine Propulsion Light Treads Treads Light Treads Wheel Compact Wheel Utility Scrap Shield Device Subdweller Optics Storage Medium Storage Unit Protection Scrap Shield Weapon Grenade Launcher Energy Gun Small Laser Ballistic Gun Assault Rifle Launcher Grenade Launcher Build | -11 -10 -10 -8 ------- Run | Yrd Mat Sub Rec Slots Evolved . | . . . . Power . | . . . . Propulsion . | . . . . Utility . | . . . . Weapon . | . . . . Parts Attached 23 | 6 4 11 2 Power 4 | 1 1 2 . Engine 4 | 1 1 2 . Core . | . . . . Reactor . | . . . . Propulsion 5 | 2 . 3 . Treads 4 | 1 . 3 . Leg . | . . . . Wheel 1 | 1 . . . Hover . | . . . . Flight . | . . . . Utility 6 | 1 1 4 . Device 2 | . . 2 . Storage 2 | 1 1 . . Processor . | . . . . Hackware . | . . . . Protection 2 | . . 2 . Artifact . | . . . . Weapon 8 | 2 2 2 2 Energy Gun 1 | 1 . . . Energy Cannon . | . . . . Ballistic Gun 3 | 1 1 . 1 Ballistic Cannon . | . . . . Launcher 4 | . 1 2 1 Special Weapon . | . . . . Impact Weapon . | . . . . Slashing Weapon . | . . . . Piercing Weapon . | . . . . Special Melee Weapon . | . . . . Unidentified Prototypes . | . . . . Parts Lost 9 | . . 3 6 Power 1 | . . 1 . Propulsion 2 | . . . 2 Utility 2 | . . 1 1 Weapon 4 | . . 1 3 Highest Loss Streak 6 | . . 3 6 To Critical Strikes . | . . . . Average Slot Usage (%) 86 | . 83 86 73 Engine 13 | . 14 12 14 Treads 26 | . 14 27 28 Wheel 1 | . 14 . . Device 2 | . . 3 . Storage 5 | . 20 4 . Protection 8 | . . 9 8 Ballistic Gun 1 | . 9 . 2 Launcher 25 | . 8 27 19 Naked Turns . | . . . . Heaviest Build 29 | 13 23 29 29 Greatest Support 40 | 20 20 40 40 Greatest Overweight (x) 1 | . 1 1 . Average Overweight (x) . | . . . . Largest Inventory Capacity 10 | 8 10 10 5 Average Capacity 6 | 6 8 6 5 Most Carried 10 | 6 10 10 5 Average Carried 6 | 3 7 5 4 Final Capacity 10 | 8 10 5 5 Final Carried 10 | 6 10 5 3 Class Distribution -------------------- 100% | Mutant Dominant Class ---------------- Mutant | -10/Materials Mutant | -10/Subcaves Mutant | -8/Recycling Resources | -11 -10 -10 -8 ----------- Run | Yrd Mat Sub Rec Matter Collected 1196 | 258 160 778 . Remotely . | . . . . Salvage Created 1042 | . 274 618 150 Parts 74 | . 22 49 3 Haulers Intercepted . | . . . . Recyclers Shooed . | . . . . Parts Field Recycled . | . . . . Retrieved Matter . | . . . . Parts Self-Destructed 11 | . . 11 . Prevented . | . . . . Kills | -11 -10 -10 -8 ------- Run | Yrd Mat Sub Rec Combat Hostiles Destroyed 38 | . 5 30 3 Guns 5 | . 3 . 2 AOE 33 | . 2 30 1 Classes Destroyed 11 | . 5 3 3 Tunneler 1 | . 1 . . Recycler 2 | . 2 . . Turret 2 | . . 2 . Watcher 1 | . 1 . . Swarmer 10 | . 3 7 . Grunt 2 | . 2 . . Sentry 1 | . . . 1 Demolisher 1 | . . . 1 Hunter 1 | . . . 1 Artisan 1 | . . 1 . Subdweller 23 | . . 23 . Best Kill Streak 6 | . 4 6 3 Combat Bots Only 5 | . 3 5 3 Max Kills in Single Turn 3 | . 3 3 1 Gunslinging . | . . . . Exploded 3 | . 2 3 1 Melee . | . . . . Uniques/NPCs Destroyed . | . . . . Combat | -11 -10 -10 -8 -------- Run | Yrd Mat Sub Rec Hostile Shots Fired 149 | . 19 81 49 Missed 43 | . 4 27 12 Damage Taken 1859 | . 193 1046 620 Core 250 | . 32 110 108 Absorbed by Shields . | . . . . Core Remaining (%) 100 | 100 . . . Volleys Fired 75 | . 23 46 6 Largest 2 | . 2 2 2 Hottest 60 | . 40 60 60 Shots Fired 121 | . 30 84 7 Gun 22 | . 18 . 4 Cannon . | . . . . Launcher 99 | . 12 84 3 Special . | . . . . Kinetic 22 | . 18 . 4 Thermal . | . . . . Explosive 99 | . 12 84 3 Electromagnetic . | . . . . Robot Hit Streak 18 | . 4 18 4 Robot Miss Streak 2 | . 2 1 2 Penetration Max . | . . . . Secondary Targets . | . . . . Shots Hit Robots 38 | . 11 23 4 Core Hits 84 | . 13 57 14 Critical Kills 1 | . 1 . . Critical Parts Destroyed . | . . . . Critical Strikes 1 | . 1 . . Destroy 1 | . 1 . . Melee Attacks . | . . . . Impact . | . . . . Slashing . | . . . . Piercing . | . . . . Sneak Attacks . | . . . . Combat Hostiles . | . . . . Follow-up Attacks . | . . . . Damage Inflicted 3555 | . 369 2785 401 Guns 195 | . 145 . 50 Cannons . | . . . . Explosions 3358 | . 224 2785 349 Melee . | . . . . Ramming 2 | . . . 2 Kinetic 195 | . 145 . 50 Thermal . | . . . . Explosive 3358 | . 224 2785 349 Electromagnetic . | . . . . Impact . | . . . . Slashing . | . . . . Piercing . | . . . . Highest Corruption 1 | . . . 1 Average Corruption 1 | . . . 1 Corruption Purged . | . . . . Corruption Blocked . | . . . . Effects 1 | . . . 1 Message Errors 1 | . . . 1 Overload Shots . | . . . . Overflow Damage 43 | . . 43 . Projectiles . | . . . . Explosions 43 | . . 43 . Melee . | . . . . Knockbacks . | . . . . Impact . | . . . . Kinetic . | . . . . Secondary . | . . . . Self-Inflicted Damage 68 | . 18 32 18 Shots 4 | . 1 2 1 Rammed 1 | . . . 1 Targets Rammed 1 | . . . 1 Kicked . | . . . . Crushed . | . . . . Highest Temperature 9 | . 8 . 9 Average Temperature 4 | . 3 . 7 Received Heat Transfer 381 | . 78 213 90 Siege Activations . | . . . . Robots Corrupted . | . . . . Combat Hostiles . | . . . . Parts Fried . | . . . . Impact Corruptions . | . . . . Robots Melted . | . . . . Combat Hostiles . | . . . . Parts Melted . | . . . . Heat Transferred . | . . . . Parts Sabotaged . | . . . . Parts Stolen . | . . . . Parts Stripped . | . . . . Power Chain Reactions . | . . . . Alert | -11 -10 -10 -8 ------- Run | Yrd Mat Sub Rec Peak Influence 236 | . 182 . 236 Initial 199 | . . . 199 Average 93 | . 103 . 198 Maximum Alert Level 1 | . . . 1 Low Security (%) 98 | 100 100 . 83 Level 1 1 | . . . 16 Level 2 . | . . . . Level 3 . | . . . . Level 4 . | . . . . Level 5 . | . . . . High Security . | . . . . Max Security . | . . . . Squads Dispatched . | . . . . Investigation . | . . . . Extermination . | . . . . Reinforcement . | . . . . Assault . | . . . . Garrison . | . . . . Intercept . | . . . . Searches Triggered . | . . . . Construction Impeded . | . . . . Haulers Reinforced . | . . . . Active Scanning Responses . | . . . . Cargo Convoy Interrupts . | . . . . Stealth | -11 -10 -10 -8 --------- Run | Yrd Mat Sub Rec Distress Signals 2 | . 2 . . Communications Jammed . | . . . . Distress Signals . | . . . . Times Spotted 63 | . 7 49 7 Peak Tracking Total 7 | . 3 6 7 Tactical Retreats 1 | . . 1 . Traps | -11 -10 -10 -8 ------- Run | Yrd Mat Sub Rec Traps Triggered 3 | . 1 2 . Indirectly . | . . . . Trap Hack Attempts . | . . . . Triggered . | . . . . Disarmed . | . . . . Reprogrammed . | . . . . Reused . | . . . . Traps Extracted . | . . . . Installed . | . . . . Triggered . | . . . . Machines | -11 -10 -10 -8 ---------- Run | Yrd Mat Sub Rec Machines Disabled 3 | . . 3 . Max in Single Turn 3 | . . 3 . Machines Repaired . | . . . . Machines Dismantled . | . . . . Machines Sabotaged . | . . . . Overloaded Fab Kills . | . . . . Hacking | -11 -10 -10 -8 --------- Run | Yrd Mat Sub Rec Machines Accessed 3 | . 2 1 . Terminals 2 | . 2 . . Fabricators . | . . . . Repair Stations . | . . . . Recycling Units . | . . . . Scanalyzers . | . . . . Garrison Access . | . . . . Total Hacks 6 | . 4 2 . Successful 4 | . 2 2 . Failed 2 | . 2 . . Catastrophic . | . . . . Database Lockouts . | . . . . Manual 4 | . 4 . . Terminals 4 | . 4 . . Fabricators . | . . . . Repair Stations . | . . . . Recycling Units . | . . . . Scanalyzers . | . . . . Garrison Access . | . . . . Terminal Hacks 4 | . 2 2 . Record 2 | . . 2 . Robot Analysis 2 | . 2 . . Fabricator Hacks . | . . . . Repair Station Hacks . | . . . . Recycling Unit Hacks . | . . . . Scanalyzer . | . . . . Garrison Access Hacks . | . . . . Unauthorized Hacks . | . . . . Terminals . | . . . . Fabricators . | . . . . Repair Stations . | . . . . Recycling Units . | . . . . Scanalyzers . | . . . . Garrison Access . | . . . . Data Cores Recovered . | . . . . Used . | . . . . Hacking Detections . | . . . . Full Trace Events . | . . . . Feedback Events . | . . . . Feedback Blocked . | . . . . Robot Schematics Acquired . | . . . . Robots Built . | . . . . Authchips . | . . . . Time . | . . . . Total Robot Build Rating . | . . . . Part Schematics Acquired . | . . . . Parts Built . | . . . . Authchips . | . . . . Time . | . . . . Total Part Build Rating . | . . . . Parts Repaired . | . . . . Time . | . . . . Parts Recycled . | . . . . Recycled Matter . | . . . . Retrieved Matter . | . . . . Retrieved Components . | . . . . Parts Scanalyzed . | . . . . Part Schematics Acquired . | . . . . Parts Damaged . | . . . . Bothacking | -11 -10 -10 -8 ------------ Run | Yrd Mat Sub Rec Used RIF Installer . | . . . . Robots Hacked . | . . . . Non-combat . | . . . . Combat . | . . . . Robot Hacks Applied . | . . . . Relay Couplers Released . | . . . . Fabnet Peak Effective % . | . . . . Robots Rewired . | . . . . Allies Hacked . | . . . . Hacks Repelled . | . . . . Allies | -11 -10 -10 -8 -------- Run | Yrd Mat Sub Rec Total Allies . | . . . . Largest Group . | . . . . Highest-Rated Group . | . . . . Highest-Rated Ally . | . . . . Total Orders . | . . . . Ally Attacks . | . . . . Total Damage . | . . . . Kills . | . . . . Allies Corrupted . | . . . . Allies Melted . | . . . . Intel | -11 -10 -10 -8 ------- Run | Yrd Mat Sub Rec Robot Analysis Total 2 | . 2 . . Derelict Logs Recovered 1 | . . 1 . Drone Launches . | . . . . Drone Recoveries . | . . . . Exploration | -11 -10 -10 -8 ------------- Run | Yrd Mat Sub Rec Turns Passed 3343 | 92 336 2867 48 Spaces Moved 2011 | 52 242 1697 20 Core 1 | 1 . . . Treads 1740 | 45 6 1669 20 Legs . | . . . . Wheels 270 | 6 236 28 . Hover . | . . . . Flight . | . . . . Fastest Speed 50 | 50 100 115 160 Average Speed 152 | 150 108 159 160 Slowest Speed 160 | 160 160 160 160 Overloaded Moves . | . . . . Propulsion Burnouts . | . . . . Robots Hopped . | . . . . Cave-ins Triggered . | . . . . Exploration Rate (%) 32 | 4 31 88 8 Regions Visited 3 Branch Regions 2 Pre-discovered Areas 1 | . . 1 . Known Exits Taken . | . . . . Unknown Exits Taken 3 | 1 1 1 . Scrap Searched 2 | . . 2 . Spaces Dug 12 | . 4 8 . Terrain Destroyed 355 | . 38 299 18 Melee . | . . . . Projectile . | . . . . AOE 355 | . 38 299 18 Terrain Rammed . | . . . . Walls Destroyed . | . . . . Machines Disabled . | . . . . Actions | -11 -10 -10 -8 --------- Run | Yrd Mat Sub Rec Total 2158 | 63 287 1779 29 Wait 6 | . 6 . . Move 2008 | 51 241 1696 20 Hop . | . . . . Pick Up 16 | 6 7 3 . Fast Attach 12 | 6 2 4 . Attach 5 | . . 3 2 Detach 1 | . 1 . . Swap 6 | . 2 4 . Drop 16 | . 5 11 . Fire 75 | . 23 46 6 Melee . | . . . . Ram . | . . . . Kick . | . . . . Crush 1 | . . . 1 Escape Stasis . | . . . . Rewire . | . . . . Trap . | . . . . Miscellaneous 12 | . . 12 . Route ------- -11/Scrapyard -10/Materials -10/Subcaves (discovered 3 exits: [*Mat x2] / [*Rec]) -8/Recycling History --------- Turn | Location | Event 38 | -11/Scrapyard | Discovered new exit (range 15) 93 | -11/Scrapyard | Entered Materials 313 | -10/Materials | Build established: Mutant 326 | -10/Materials | Discovered new exit (range 9) 429 | -10/Materials | Entered Subcaves 429 | -10/Subcaves | Learned Materials terminal intel 658 | -10/Subcaves | Shifting Twisted Machinery released Sub. Monowheel 668 | -10/Subcaves | Shifting Twisted Machinery released Sub. Laser 685 | -10/Subcaves | Discovered new exit (range 7) 820 | -10/Subcaves | Ambushed by Subdweller buried in earth 1117 | -10/Subcaves | Ambushed by Subdwellers from Twisted Machinery 1593 | -10/Subcaves | Visited Clippyterm 1892 | -10/Subcaves | Ambushed by angry Subdweller bent on revenge 2087 | -10/Subcaves | Learned location of Zion (-7) 2087 | -10/Subcaves | Met a Zionite searching for "candidates" 2216 | -10/Subcaves | Discovered new exit (range 8) 2375 | -10/Subcaves | Ambushed by Subdweller buried in earth 2647 | -10/Subcaves | Ambushed by Subdweller buried in earth 2653 | -10/Subcaves | Ambushed by Subdweller buried in earth 2653 | -10/Subcaves | Ambushed by Subdweller buried in earth 2656 | -10/Subcaves | Ambushed by Subdweller buried in earth 2687 | -10/Subcaves | Lost 3 parts (1p1u1w) 2860 | -10/Subcaves | Discovered new exit (range 15) 2873 | -10/Subcaves | Core integrity fell below 50% 2948 | -10/Subcaves | A swath of the cavern ceiling suddenly collapsed 3180 | -10/Subcaves | A swath of the cavern ceiling suddenly collapsed 3296 | -10/Subcaves | Entered Recycling 3341 | -8/Recycling | Core integrity fell below 20% 3344 | -8/Recycling | Destroyed by D-53 Grenadier with Mini Grenade Launcher Last Messages --------------- 03318_ G-47 Trooper springs to life. 03318_ D-53 Grenadier springs to life. 03320_ K-01 Serf destroyed. 03320_ Grenade Launcher destroyed. 03323_ Slug penetrates P-60 Hacker. 03324_ Slammed into I-25 Savior. 03328_ Scrap Shield destroyed. 03330_ Slug penetrates Wall. 03334_ H-55 Commando destroyed. 03335_ Grenade Launcher destroyed. 03336_ I-25 Savior destroyed. 03336_ G-47 Trooper destroyed. 03337_ The unstable cave ceiling collapses. 03337_ D-53 Grenadier destroyed. 03339_ DSNSHQZERKD26SRB X3TTIO32 03339_ Y-45 Defender destroyed. 03340_ Spk. Treads destroyed. 03340_ Recycling Unit disabled. 03342_ R-06 Scavenger destroyed. 03343_ Lgt. Treads destroyed. Map ----- +----------------------------------------------------+ | ????????????????????????????????????? | | ????????????????????????????????????? | | ????????????????????????????????????? | | ????????????????????????????????????? | | ????????????????????????????????????? | | ????????????????????????????????????? | | ????????????????????????????????????? | | ????????????????????????????????????? | | ????????????????????????????????????? | | ????????????????????????????????????? | | ????????????????????????????????????? | | ????????????????????????????????????? | | ????????????????????????????????????? | | ????????????????????????????????????? | | ????????????????????????????????????? | | ?????????????? ?????????????????????? | | ??????????????? ????"???????????????? | | ???????????????? """"??????????????? | | ????????????????? """"??????????????? | | ?????????????????? """ ?????????????? | | ??????????????????? #####?######?? | | ???????????????????? # ### i #?? | | ???????????######+#### #a!k #?? | | ?????????? ! ! #?? | | ?????????? %= t Y #?? | | ?????????? * @ %a #?? | | ?????????????????+##+# g #?? | | ??????????????????? " %p d #?? | | ???????????????? ! "Y % db =#?? | | ??????????????# ! #"" !# #?? | | ??????????????# ! ### #%% #?? | | ??????????????#! ! ???# ! # d##? | | ??????????????# ! ???# # ? | | ??????????????#!! !????##### # | | ??????????????# ?????????## # | | ??????????????# ! ???????????# # | | ??????????????#####?????????????##### | | ????????????????????????????????????? | | ????????????????????????????????????? | | ????????????????????????????????????? | | ????????????????????????????????????? | | ????????????????????????????????????? | | ????????????????????????????????????? | | | | | | | | | | | | | | | +----------------------------------------------------+ Best States ------------- Heat Dissipation 25 Energy Generation 10 Energy Capacity 250 Matter Stores 300 Matter Capacity 300 Sight Range 21 Terrain Scan Density 10 Armor Coverage 800 Evasion (%) 40 Recoil Reduction 2 Item Schematics ----------------- None Robot Schematics ------------------ None Fabricated ------------ Nothing Alien Tech Used ----------------- None Achievements -------------- None Challenges ------------ None Game ------ Seed CatalystCloakingChronowheel Manual? 0 Play Time 00:25:58 Cumulative 22.2 hours Start 2024.04.10 @ 11:10:45 End 2024.04.10 @ 11:40:18 Sessions 1 Manual Loads 0 Difficulty Rogue Special Mode None Game No. 22 Rogue 18 Adventurer 0 Explorer 4 Win Type - Total 0 Types 0/0/0/0/0/0/0/0/0 Lore% 23 Gallery% 25 Achievement% 26 Wizard Run 0 Options --------- Layout 1 ASCII 0 Keyboard 0 Movement Mouse Keybinds 0 Fullscreen 2 Font 20/SmallcapsGlow Map View 60x48 Zoom Use 0% Tactical HUD 1 Map Filters NONE Filters NONE Steam 1 RUN: a77f8eb4-9b39-43a5-9a55-5b3fa28c1ef8